bitfinex-derivatives/quotes_SOLF0:USTF0_20250624
["timestamp","ask_amount","ask_price","bid_price","bid_amount"]
[1750776547372,7.2055871,145.38,145.29,7.2055871]
[1750776547574,7.2055871,145.38,145.28,36.7]
[1750776547775,7.2055871,145.36,145.28,36.7]
[1750776547973,6.877,145.34,145.31,6.8781]
[1750776548273,6.877,145.34,145.28,36.7]
[1750776548472,7.2055871,145.34,145.26,2.2378]
[1750776548670,9.6074871,145.34,145.24,7.2055871]
[1750776549069,6.8777,145.32,145.24,7.2055871]
[1750776549683,36.7,145.31,145.23,36.7]
[1750776549869,36.7,145.31,145.22,2.2378]
[1750776549870,7.2055871,145.3,145.22,2.2378]
[1750776550270,6.8794,145.29,145.22,2.2378]
[1750776550973,36.7,145.31,145.22,9.4433871]
[1750776551364,7.2055871,145.3,145.21,2.1991]
[1750776551582,7.2055871,145.3,145.23,6.8817]
[1750776551874,7.23556017,145.28,145.19,2.3132]
[1750776552064,7.23556017,145.28,145.18,7.23556017]
[1750776552065,39.0804,145.27,145.18,7.23556017]
[1750776553073,6.8815,145.24,145.18,7.23556017]
[1750776553272,36.72,145.23,145.14,46.25296017]
[1750776553876,36.72,145.23,145.15,62.0]
[1750776554480,36.72,145.23,145.2,6.8831]
[1750776554978,36.72,145.23,145.21,6.8828]
[1750776555182,36.72,145.23,145.15,7.23556017]
[1750776555375,7.23556017,145.22,145.13,7.23556017]
[1750776555682,6.883,145.21,145.12,4.4403]
[1750776555871,43.95556017,145.23,145.14,7.23556017]
[1750776556073,7.23556017,145.21,145.12,11.67586017]
[1750776556272,36.72,145.23,145.1,7.23556017]
[1750776556273,7.23556017,145.19,145.1,7.23556017]
[1750776556480,39.0899,145.18,145.1,7.23556017]
[1750776556685,39.0899,145.18,145.09,7.23556017]
[1750776557178,7.23556017,145.17,145.08,7.23556017]
[1750776557388,6.8867,145.13,145.06,62.0]
[1750776557585,7.23556017,145.15,145.05,9.65566017]
[1750776557586,36.74,145.12,145.05,9.65566017]
[1750776557884,36.74,145.12,145.02,11.99746017]
[1750776558073,2.3799,145.11,145.02,11.99746017]
[1750776558989,7.23556017,145.1,145.02,4.7619]
[1750776559180,2.3799,145.11,145.02,4.7619]
[1750776559380,2.3799,145.11,145.04,7.23556017]
[1750776559777,2.3144,145.17,145.06,7.23556017]
[1750776560077,36.76,145.15,145.08,7.23556017]
[1750776560277,36.76,145.15,145.12,6.8868]
[1750776560483,36.76,145.15,145.12,7.23556017]
[1750776560795,36.76,145.17,145.16,6.8848]
[1750776560989,36.76,145.17,145.12,7.23556017]
[1750776561280,36.76,145.17,145.14,6.8858]
[1750776561477,36.76,145.17,145.1,36.76]
[1750776561677,36.76,145.17,145.1,43.99556017]
[1750776561987,36.76,145.17,145.1,7.23556017]
[1750776562683,43.99556017,145.17,145.07,37.14]
[1750776562886,43.99556017,145.17,145.1,6.8876]
[1750776563077,43.99556017,145.17,145.06,147.05396017]
[1750776563277,7.23556017,145.15,145.06,9.49396017]
[1750776564384,36.76,145.17,145.1,7.23556017]
[1750776564582,43.6451,145.17,145.13,6.8864]
[1750776564784,36.76,145.17,145.1,7.23556017]
[1750776564984,43.6448,145.17,145.1,7.23556017]
[1750776565487,36.76,145.17,145.1,7.23556017]
[1750776565887,36.76,145.17,145.12,7.23556017]
[1750776566188,43.6448,145.17,145.14,6.8859]
[1750776566487,43.6448,145.17,145.12,7.23556017]
[1750776567388,36.76,145.17,145.12,7.23556017]
[1750776568290,36.76,145.17,145.09,44.37556017]
[1750776569082,36.76,145.17,145.11,6.8874]
[1750776569486,36.76,145.17,145.09,7.23556017]
[1750776570791,36.76,145.17,145.08,7.23556017]
[1750776571187,6.8875,145.12,145.08,6.8888]
[1750776571387,37.16,145.13,145.06,46.63396017]
[1750776571698,37.16,145.13,145.08,7.2459355]
[1750776573280,37.16,145.16,145.1,7.2459355]
[1750776573486,4.6464,145.18,145.12,7.2459355]
[1750776573680,46.7744355,145.21,145.1,7.2459355]
[1750776573887,2.3028,145.18,145.1,7.2459355]
[1750776574288,6.8847,145.17,145.1,7.2459355]
[1750776574686,2.3028,145.18,145.16,6.8851]
[1750776575400,2.2154,145.2,145.14,7.2459355]
[1750776575584,37.16,145.21,145.16,7.2459355]
[1750776575898,37.16,145.21,145.19,6.8836]
[1750776576299,37.16,145.21,145.16,7.2459355]
[1750776576890,37.16,145.21,145.19,6.8837]
[1750776577290,44.0428,145.21,145.16,7.2459355]
[1750776577493,44.0428,145.21,145.13,2.3438]
[1750776577494,37.16,145.21,145.14,7.2459355]
[1750776577795,6.8838,145.19,145.14,7.2459355]
[1750776578191,37.16,145.21,145.13,2.3438]
[1750776578490,37.16,145.21,145.12,44.4059355]
[1750776578890,6.8856,145.16,145.09,41.8738]
[1750776579090,2.1839,145.23,145.09,41.8738]
[1750776579091,37.16,145.17,145.09,41.8738]
[1750776579293,37.16,145.16,145.09,49.1197355]
[1750776579490,6.8859,145.15,145.12,6.8867]
[1750776579701,37.16,145.16,145.09,49.1197355]
[1750776580091,37.16,145.16,145.13,6.8866]
[1750776580292,37.16,145.16,145.09,49.1197355]
[1750776580997,44.0453,145.16,145.09,49.1197355]
[1750776581691,37.16,145.16,145.09,46.7987355]
[1750776582099,6.8864,145.14,145.09,46.7987355]
[1750776582400,37.16,145.16,145.09,46.7987355]
[1750776583197,6.8859,145.15,145.12,6.8868]
[1750776583592,44.4059355,145.16,145.09,6.8881]
[1750776583798,49.0646355,145.16,145.06,44.4059355]
[1750776584300,49.0646355,145.16,145.1,6.8878]
[1750776584301,6.8869,145.13,145.1,6.8878]
[1750776585696,6.8869,145.13,145.06,44.4059355]
[1750776585897,41.8187,145.16,145.06,44.4059355]
[1750776586301,41.8187,145.16,145.1,6.8878]
[1750776586501,41.8187,145.16,145.06,44.4059355]
[1750776586704,7.2459355,145.13,145.06,6.8896]
[1750776586901,7.2459355,145.13,145.04,4.7025]
[1750776586902,37.16,145.12,145.04,4.7025]
[1750776587302,37.16,145.12,145.06,6.8897]
[1750776587698,6.8887,145.09,145.06,6.8897]
[1750776587999,37.16,145.12,145.04,4.7025]
[1750776588399,37.16,145.12,145.06,6.8897]
[1750776588702,6.8893,145.08,145.01,7.2459355]
[1750776589008,37.16,145.08,145.01,7.2459355]
[1750776589209,6.8897,145.07,145.01,7.2459355]
[1750776589413,37.16,145.08,145.01,7.2459355]
[1750776589603,37.16,145.08,145.05,6.8902]
[1750776590004,37.16,145.08,145.0,103.7516]
[1750776590404,6.8899,145.06,145.0,103.7516]
[1750776590707,37.16,145.08,145.01,7.25328566]
[1750776591106,37.16,145.08,145.03,7.25328566]
[1750776591306,4.6587,145.16,145.07,7.24717573]
[1750776591607,7.24717573,145.14,145.05,37.16]
[1750776591805,7.24717573,145.12,145.02,37.4]
[1750776592005,37.4,145.11,145.02,37.4]
[1750776592313,6.8889,145.09,145.02,43.49812485]
[1750776592506,37.4,145.11,145.02,37.4]
[1750776592903,37.4,145.11,145.05,7.24717573]
[1750776593101,37.4,145.15,145.07,7.24717573]
[1750776593310,6.8868,145.13,145.1,6.8878]
[1750776593808,6.8868,145.13,145.07,7.24717573]
[1750776594014,6.8872,145.12,145.07,7.24717573]
[1750776594311,37.4,145.15,145.07,13.34530058]
[1750776594506,6.8867,145.13,145.07,13.34530058]
[1750776595412,37.4,145.15,145.08,6.09812485]
[1750776595710,37.4,145.15,145.07,13.34530058]
[1750776595907,6.8871,145.12,145.09,6.8883]
[1750776596108,37.4,145.15,145.07,6.09812485]
[1750776596309,37.4,145.15,145.08,6.09812485]
[1750776596507,6.8869,145.13,145.1,6.8878]
[1750776598210,37.4,145.15,145.1,6.8878]
[1750776598613,37.4,145.15,145.09,6.09812485]
[1750776599105,37.4,145.15,145.11,6.8873]
[1750776599306,6.8866,145.13,145.11,6.8873]
[1750776599507,6.8866,145.13,145.1,6.09812485]
[1750776600213,6.8872,145.12,145.1,6.09812485]
[1750776600514,37.4,145.15,145.1,6.09812485]
[1750776601315,6.8869,145.13,145.1,12.98592485]
[1750776601515,6.8869,145.13,145.1,6.09812485]
[1750776601815,37.4,145.15,145.11,6.09812485]
[1750776603014,632.28,145.18,145.12,6.09812485]
[1750776603209,6.8858,145.15,145.12,6.09812485]
[1750776603509,6.8858,145.15,145.13,6.09812485]
[1750776603709,6.8854,145.16,145.12,6.09812485]
[1750776603910,6.8854,145.16,145.13,6.09812485]
[1750776604212,6.8855,145.16,145.13,12.98432485]
[1750776605018,6.8855,145.16,145.14,6.8861]
[1750776605408,632.28,145.18,145.14,6.09812485]
[1750776605611,632.28,145.18,145.15,6.09812485]
[1750776606309,594.88,145.18,145.15,6.09812485]
[1750776606506,37.4,145.19,145.18,6.8842]
[1750776606706,599.6134,145.25,145.18,6.09812485]
[1750776606913,634.6239,145.25,145.22,6.8821]
[1750776607117,39.6639,145.25,145.21,6.09812485]
[1750776607510,46.5451,145.25,145.22,6.8823]
[1750776608018,39.6639,145.25,145.22,6.09812485]
[1750776608313,39.6639,145.25,145.2,6.09812485]
[1750776608510,7.24209825,145.24,145.19,6.09812485]
[1750776608705,6.8831,145.21,145.18,12.98232485]
[1750776608918,44.2831,145.21,145.18,12.98232485]
[1750776609115,37.4,145.21,145.19,6.09812485]
[1750776609312,37.4,145.21,145.2,12.98142485]
[1750776609516,37.4,145.25,145.19,8.27442042]
[1750776609814,37.4,145.25,145.21,6.34112901]
[1750776611517,37.4,145.25,145.2,13.22402901]
[1750776611718,37.4,145.25,145.19,6.34112901]
[1750776611919,44.64209825,145.25,145.19,6.34112901]
[1750776612120,6.883,145.21,145.18,13.22502901]
[1750776612419,44.64209825,145.25,145.19,6.34112901]
[1750776612616,6.8837,145.2,145.18,6.34112901]
[1750776615018,44.2636,145.2,145.18,6.8842]
[1750776615518,44.2636,145.2,145.17,13.22562901]
[1750776615720,44.2636,145.2,145.17,6.8845]
[1750776616111,6.8839,145.19,145.16,13.22622901]
[1750776616417,6.8839,145.19,145.14,10.65312042]
[1750776616418,37.38,145.2,145.15,6.34112901]
[1750776616608,6.8841,145.19,145.16,6.8849]
[1750776616814,37.38,145.2,145.16,6.8849]
[1750776617215,6.8838,145.19,145.16,6.8849]
[1750776618116,6.8838,145.19,145.17,6.8846]
[1750776618316,44.2635,145.2,145.17,6.8846]
[1750776618518,37.38,145.2,145.17,6.8846]
[1750776618718,37.38,145.2,145.16,6.885]
[1750776618919,37.38,145.2,145.15,6.34112901]
[1750776619221,37.38,145.2,145.13,8.27442042]
[1750776619222,37.38,145.2,145.13,6.34112901]
[1750776619415,6.8857,145.15,145.12,6.34112901]
[1750776619824,6.8857,145.15,145.12,13.22802901]
[1750776620022,6.8862,145.14,145.12,6.8869]
[1750776620323,6.8862,145.14,145.12,6.887]
[1750776620514,37.38,145.16,145.12,6.887]
[1750776621213,37.38,145.16,145.1,6.34112901]
[1750776621419,37.38,145.16,145.11,6.34112901]
[1750776621816,37.38,145.16,145.15,6.8856]
[1750776625826,37.38,145.16,145.11,6.34112901]
[1750776626227,37.38,145.16,145.12,6.34112901]
[1750776626424,44.2652,145.16,145.13,6.8862]
[1750776627024,6.8857,145.15,145.12,13.22812901]
[1750776627225,37.38,145.16,145.12,6.34112901]
[1750776627423,6.886,145.15,145.12,6.8866]
[1750776627830,37.38,145.16,145.11,6.34112901]
[1750776628033,6.8869,145.13,145.1,13.22892901]
[1750776628220,7.24209825,145.15,145.09,6.34112901]
[1750776628538,6.888,145.1,145.09,6.34112901]
[1750776628737,37.68,145.1,145.07,6.34112901]
[1750776629120,37.68,145.1,145.09,6.8885]
[1750776634422,37.68,145.1,145.08,13.22982901]
[1750776634423,44.5681,145.1,145.08,13.22982901]
[1750776634627,37.68,145.1,145.08,6.34112901]
[1750776635529,6.8885,145.09,145.08,6.34112901]
[1750776635743,44.92209825,145.1,145.06,6.34112901]
[1750776636323,6.8894,145.07,145.06,6.34112901]
[1750776636532,6.8894,145.07,145.05,13.23142901]
[1750776638528,6.8899,145.06,145.05,6.34112901]
[1750776639024,6.8899,145.06,145.04,6.8907]
[1750776639025,6.8904,145.05,145.04,6.34112901]
[1750776639227,44.94209825,145.06,145.03,6.34112901]
[1750776639433,37.7,145.05,145.01,6.34112901]
[1750776639632,37.7,145.05,144.99,8.27442042]
[1750776639633,7.24209825,145.02,144.99,8.27442042]
[1750776639936,7.24209825,145.0,144.94,8.27442042]
[1750776640235,7.24209825,144.96,144.92,8.27442042]
[1750776640435,37.7,144.95,144.89,8.27442042]
[1750776640643,6.8966,144.92,144.88,15.17262042]
[1750776640938,6.8966,144.92,144.86,14.82433063]
[1750776640939,7.24209825,144.94,144.86,10.68712042]
[1750776641140,2.208,144.94,144.86,17.92921867]
[1750776641338,37.7,144.98,144.89,15.53871377]
[1750776641537,37.7,144.98,144.89,7.26429335]
[1750776641737,44.5938,144.98,144.94,6.8953]
[1750776641937,37.7,144.98,144.89,7.26429335]
[1750776642442,6.8943,144.97,144.93,6.8957]
[1750776642644,37.7,144.98,144.87,8.27442042]
[1750776642645,44.96429335,144.98,144.87,8.27442042]
[1750776642830,51.85839335,144.98,144.93,6.8956]
[1750776643040,44.96459013,144.98,144.89,7.26459013]
[1750776643541,6.895,144.96,144.89,7.26459013]
[1750776643739,44.96459013,144.98,144.89,7.26459013]
[1750776643935,44.96459013,144.98,144.92,6.8963]
[1750776644138,44.96459013,144.98,144.89,7.26459013]
[1750776644330,44.96459013,144.98,144.87,15.53901055]
[1750776644531,6.8956,144.95,144.9,6.8974]
[1750776644739,37.72,144.94,144.87,7.26459013]
[1750776645540,37.72,144.94,144.91,6.8968]
[1750776645731,37.72,144.94,144.87,69.26459013]
[1750776646537,37.72,144.94,144.89,7.26459013]
[1750776646746,37.72,144.94,144.92,6.8962]
[1750776647346,37.72,144.94,144.86,2.4127]
[1750776647538,37.72,144.94,144.86,9.67729013]
[1750776647733,6.8961,144.93,144.89,6.8978]
[1750776648339,44.98459013,144.94,144.86,2.4127]
[1750776648531,44.98459013,144.94,144.84,11.97599013]
[1750776648532,7.26459013,144.92,144.84,4.7114]
[1750776648738,7.26459013,144.9,144.84,2.3058]
[1750776648944,37.72,144.89,144.84,2.3058]
[1750776649142,37.72,144.89,144.85,6.8996]
[1750776649551,37.72,144.89,144.84,2.3058]
[1750776650747,37.72,144.89,144.88,6.8985]
[1750776652231,37.72,144.89,144.84,2.3058]
[1750776652648,7.26459013,144.88,144.81,2.4184]
[1750776653244,7.26459013,144.88,144.83,6.9005]
[1750776653741,7.26459013,144.88,144.78,4.6533]
[1750776653946,7.26459013,144.86,144.78,4.6533]
[1750776654145,37.72,144.85,144.78,11.92854307]
[1750776654447,37.72,144.86,144.8,7.27524307]
[1750776655348,37.72,144.86,144.79,7.27524307]
[1750776655540,37.72,144.86,144.79,69.27524307]
[1750776656749,37.72,144.86,144.83,6.9005]
[1750776656949,37.72,144.86,144.79,69.27524307]
[1750776657140,44.6195,144.86,144.79,69.27524307]
[1750776657541,6.9006,144.84,144.78,4.6533]
[1750776657753,37.72,144.86,144.78,4.6533]
[1750776657954,7.27416109,144.83,144.73,7.27416109]
[1750776658146,37.74,144.82,144.73,7.27416109]
[1750776658555,37.74,144.82,144.75,7.27416109]
[1750776659845,44.6416,144.82,144.75,7.27416109]
[1750776660046,37.74,144.82,144.73,7.27416109]
[1750776660247,37.74,144.82,144.75,7.27416109]
[1750776660951,7.27416109,144.81,144.72,9.2606]
[1750776661153,2.3832,144.81,144.69,7.27416109]
[1750776661452,2.3832,144.81,144.78,6.903]
[1750776661763,37.74,144.81,144.75,7.27842631]
[1750776662053,37.74,144.84,144.81,6.9018]
[1750776662251,37.74,144.84,144.78,7.27842631]
[1750776662556,37.74,144.84,144.83,6.9009]
[1750776663263,633.6,144.87,144.81,2.2442]
[1750776664357,633.6,144.87,144.83,6.9006]
[1750776664558,640.4992,144.87,144.83,6.9006]
[1750776665150,633.6,144.87,144.81,2.2442]
[1750776665346,633.6,144.87,144.81,9.52262631]
[1750776666751,37.74,144.87,144.83,7.27842631]
[1750776666955,596.02,144.94,144.85,7.27842631]
[1750776667153,37.74,144.93,144.83,37.74]
[1750776667455,37.74,144.93,144.85,7.27842631]
[1750776667660,37.74,144.93,144.87,7.27842631]
[1750776667856,37.74,144.93,144.87,69.27842631]
[1750776668052,2.23,144.97,144.89,7.27842631]
[1750776668251,37.74,144.96,144.89,7.27842631]
[1750776668555,6.8952,144.95,144.92,6.8965]
[1750776668753,37.74,144.96,144.92,6.8965]
[1750776669153,44.6349,144.96,144.92,6.8965]
[1750776669560,37.74,144.96,144.91,6.897]
[1750776669763,37.74,144.96,144.89,7.27842631]
[1750776669953,37.74,144.96,144.91,7.27842631]
[1750776670761,37.74,144.96,144.93,6.8958]
[1750776671055,44.6348,144.96,144.93,6.8958]
[1750776671250,37.74,144.96,144.91,7.27842631]
[1750776671451,596.02,145.01,144.94,7.26117179]
[1750776671657,37.74,145.0,144.94,7.26117179]
[1750776672063,37.74,145.0,144.92,37.74]
[1750776672250,37.74,145.0,144.94,7.26117179]
[1750776672458,37.74,145.0,144.96,6.8944]
[1750776672656,44.633,145.0,144.94,7.26117179]
[1750776672856,37.74,145.0,144.94,7.26117179]
[1750776673057,37.74,145.0,144.92,37.74]
[1750776673058,37.74,145.0,144.93,7.26031462]
[1750776673364,6.8935,144.99,144.93,7.26031462]
[1750776673964,40.0966,145.0,144.93,6.8959]
[1750776674258,40.0966,145.0,144.92,37.74]
[1750776674458,6.8938,144.98,144.92,37.74]
[1750776674660,40.0966,145.0,144.95,6.8951]
[1750776674963,37.74,145.0,144.95,7.26031462]
[1750776675557,37.74,145.0,144.97,6.8939]
[1750776676155,37.74,145.0,144.98,6.8936]
[1750776676661,37.74,145.0,144.97,6.894]
[1750776677266,37.74,145.0,144.98,6.8936]
[1750776678068,44.6316,145.03,144.99,6.8931]
[1750776678465,37.74,145.03,144.99,6.8931]
[1750776678657,37.74,145.03,144.97,7.26031462]
[1750776679066,37.74,145.03,145.02,6.8918]
[1750776679263,40.0766,145.06,144.97,7.26031462]
[1750776679567,40.0766,145.06,144.97,9.46691462]
[1750776679767,47.33691462,145.06,144.97,9.46691462]
[1750776680068,47.33691462,145.06,145.0,6.8923]
[1750776680260,47.33691462,145.06,144.97,9.46691462]
[1750776680657,6.8905,145.05,144.97,9.46691462]
[1750776681165,47.33691462,145.06,144.96,39.9151]
[1750776681565,40.0766,145.06,144.97,7.25635546]
[1750776681964,46.9669,145.06,144.97,7.25635546]
[1750776682664,40.0766,145.06,145.01,6.8921]
[1750776682870,40.0766,145.06,144.97,7.25635546]
[1750776683061,40.0766,145.06,144.97,9.61725546]
[1750776683265,37.88,145.07,144.99,7.25635546]
[1750776683757,44.7695,145.07,145.03,6.8911]
[1750776683959,37.88,145.07,144.99,7.25635546]
[1750776684160,37.88,145.07,145.01,7.25635546]
[1750776685875,44.7695,145.07,145.03,6.8911]
[1750776686068,37.88,145.07,145.0,37.88]
[1750776687575,7.25635546,145.06,144.97,45.13635546]
[1750776688071,7.25635546,145.04,144.97,37.88]
[1750776688377,40.0779,145.03,144.97,37.88]
[1750776688566,40.0779,145.03,145.0,6.8925]
[1750776688772,40.0779,145.03,144.95,7.25635546]
[1750776688975,40.0779,145.03,144.97,6.8942]
[1750776689272,40.0779,145.03,144.94,37.88]
[1750776689877,7.25635546,145.02,144.94,37.88]
[1750776690077,6.8935,144.99,144.95,6.8949]
[1750776690275,7.25635546,145.02,144.93,9.46295546]
[1750776691876,6.8933,144.99,144.93,9.46295546]
[1750776692174,7.25635546,145.02,144.93,7.25635546]
[1750776692372,6.8939,144.98,144.92,2.3179]
[1750776692574,7.25635546,144.98,144.91,37.88]
[1750776692972,6.8944,144.97,144.91,37.88]
[1750776693273,7.25635546,144.98,144.89,602.99635546]
[1750776693470,7.25635546,144.98,144.92,6.8964]
[1750776693671,7.25635546,144.98,144.88,40.2275]
[1750776693872,7.25635546,144.96,144.88,40.2275]
[1750776694074,6.8959,144.94,144.9,6.8975]
[1750776694379,7.25635546,144.94,144.84,2.2511]
[1750776694580,7.25635546,144.92,144.89,6.898]
[1750776694775,37.88,144.91,144.84,2.2511]
[1750776695172,37.88,144.91,144.84,9.50745546]
[1750776695769,37.88,144.91,144.89,6.898]
[1750776695976,37.88,144.91,144.84,9.50745546]
[1750776696276,37.88,144.91,144.89,6.8979]
[1750776696481,37.88,144.91,144.84,9.50745546]
[1750776696677,37.88,144.91,144.84,2.2511]
[1750776696879,37.88,144.91,144.83,62.0]
[1750776698083,37.88,144.94,144.84,7.25635546]
[1750776698275,37.88,144.94,144.85,7.25635546]
[1750776698783,37.88,144.94,144.9,6.8973]
[1750776699684,44.776,144.94,144.89,6.8978]
[1750776699882,37.88,144.94,144.85,13.57056706]
[1750776700081,37.88,144.94,144.85,7.25635546]
[1750776700276,6.8965,144.93,144.85,7.25635546]
[1750776700683,6.8965,144.93,144.89,6.898]
[1750776701378,37.88,144.94,144.85,13.57056706]
[1750776701579,37.88,144.94,144.87,7.25635546]
[1750776701777,37.88,144.94,144.93,6.8961]
[1750776701980,633.38,144.97,144.89,7.25635546]
[1750776702182,37.9,144.97,144.89,7.25635546]
[1750776702483,37.9,144.97,144.91,7.25635546]
[1750776702889,37.9,144.97,144.9,37.9]
[1750776703079,37.9,144.97,144.91,7.25635546]
[1750776703483,37.9,144.97,144.91,13.57056706]
[1750776703988,37.9,144.97,144.96,6.8947]
[1750776704181,37.9,144.97,144.91,13.57056706]
[1750776705992,37.9,144.97,144.94,6.8953]
[1750776708092,37.9,144.97,144.92,6.3142116]
[1750776708492,37.9,144.97,144.93,6.3142116]
[1750776708991,37.9,144.97,144.96,6.8947]
[1750776709179,2.1995,145.0,144.96,6.8947]
[1750776709385,37.9,144.99,144.93,6.3142116]
[1750776709585,2.1995,145.0,144.93,6.3142116]
[1750776709786,40.0995,145.0,144.93,6.3142116]
[1750776709988,40.0995,145.0,144.98,6.8935]
[1750776710787,40.0995,145.0,144.94,6.3142116]
[1750776711397,46.9927,145.0,144.96,6.8945]
[1750776713003,46.9927,145.0,144.97,6.8942]
[1750776713897,6.8933,144.99,144.96,6.8945]
[1750776714093,40.0995,145.0,144.94,6.3142116]
[1750776714604,46.9926,145.0,144.96,6.8943]
[1750776715103,40.0995,145.0,144.96,6.8943]
[1750776715305,6.8934,144.99,144.97,6.8942]
[1750776715504,40.0995,145.0,144.94,6.3142116]
[1750776715700,7.25635546,144.99,144.94,6.3142116]
[1750776716005,40.0995,145.0,144.94,6.3142116]
[1750776716006,47.36268671,145.0,144.94,6.3142116]
[1750776716198,6.8935,144.99,144.96,6.8946]
[1750776716703,47.36268671,145.0,144.94,6.3142116]
[1750776717003,47.36268671,145.0,144.95,6.8948]
[1750776717201,47.36268671,145.0,144.94,6.3142116]
[1750776717402,6.8935,144.99,144.96,6.8947]
[1750776719008,6.8938,144.98,144.96,6.8947]
[1750776719504,6.8935,144.99,144.97,6.8942]
[1750776719704,6.8935,144.99,144.93,6.3142116]
[1750776720095,6.8935,144.99,144.96,6.8945]
[1750776720595,47.36268671,145.0,144.96,6.8945]
[1750776720596,6.8939,144.98,144.96,6.8945]
[1750776720796,40.0995,145.0,144.93,6.3142116]
[1750776721000,7.26318671,144.96,144.91,6.3142116]
[1750776721205,37.36,144.95,144.92,6.8963]
[1750776721401,37.36,144.95,144.91,6.3142116]
[1750776722105,37.36,144.95,144.92,6.3142116]
[1750776722710,44.2552,144.95,144.92,6.3142116]
[1750776723009,37.36,144.95,144.92,6.3142116]
[1750776723603,37.36,144.95,144.91,6.3142116]
[1750776724011,44.2554,144.95,144.92,6.8966]
[1750776725412,37.36,144.95,144.93,6.8961]
[1750776726204,37.36,144.95,144.92,6.8964]
[1750776726403,37.36,144.95,144.9,6.3142116]
[1750776726800,6.8964,144.93,144.9,6.8973]
[1750776728014,6.8967,144.92,144.89,6.3142116]
[1750776728218,9.52188671,144.94,144.88,6.3142116]
[1750776728525,4.36146388,144.92,144.88,6.3142116]
[1750776728710,37.36,144.93,144.88,6.3142116]
[1750776729216,37.36,144.93,144.89,6.3142116]
[1750776729609,37.36,144.93,144.9,6.3142116]
[1750776729916,37.36,144.93,144.91,6.8968]
[1750776730114,37.36,144.93,144.9,6.3142116]
[1750776730304,44.2562,144.93,144.9,6.3142116]
[1750776730502,37.36,144.93,144.91,6.897]
[1750776730703,37.36,144.93,144.9,6.3142116]
[1750776731019,44.2562,144.93,144.9,6.3142116]
[1750776731318,37.36,144.93,144.91,6.3142116]
[1750776731515,37.36,144.93,144.92,6.3142116]
[1750776731704,37.36,144.93,144.91,6.3142116]
[1750776732110,37.36,144.93,144.9,6.3142116]
[1750776732713,4.36146388,144.92,144.9,6.3142116]
[1750776733022,4.36146388,144.92,144.89,6.3142116]
[1750776733312,6.8973,144.91,144.89,6.3142116]
[1750776733511,6.8973,144.91,144.88,13.2124116]
[1750776733706,4.36146388,144.92,144.88,6.3142116]
[1750776733910,4.36146388,144.92,144.89,13.2120116]
[1750776734717,6.8973,144.91,144.89,13.2120116]
[1750776735016,6.8973,144.91,144.89,6.3142116]
[1750776735319,6.8976,144.9,144.89,6.3142116]
[1750776735715,6.8976,144.9,144.88,6.3142116]
[1750776735716,4.36146388,144.9,144.88,6.3142116]
[1750776736521,37.38,144.89,144.88,6.3142116]
[1750776737119,37.38,144.89,144.87,13.2128116]
[1750776737422,37.38,144.89,144.87,6.3142116]
[1750776737625,44.2783,144.89,144.87,13.2132116]
[1750776738416,37.38,144.89,144.87,13.2132116]
[1750776739430,44.278,144.89,144.87,13.2132116]
[1750776739727,37.38,144.89,144.87,6.3142116]
[1750776739931,44.2783,144.89,144.87,6.3142116]
[1750776740126,37.38,144.89,144.87,6.3142116]
[1750776740324,37.38,144.89,144.86,6.8992]
[1750776740325,37.38,144.89,144.86,13.2134116]
[1750776741230,37.38,144.89,144.87,6.3142116]
[1750776741421,37.38,144.89,144.88,6.3142116]
[1750776742137,37.38,144.93,144.87,8.3534961]
[1750776742426,595.8,144.95,144.91,6.35289292]
[1750776742631,595.8,144.95,144.92,6.8962]
[1750776743033,595.8,144.95,144.91,6.35289292]